bitfinex-derivatives/quotes_BNBF0:USTF0_20250309
["timestamp","ask_amount","ask_price","bid_price","bid_amount"]
[1741529394844,0.32236539,570.64,569.46,0.29684137]
[1741529395042,0.3504898,570.63,569.46,0.29684137]
[1741529395442,0.32236539,570.62,569.46,0.29684137]
[1741529395646,0.35050209,570.61,569.46,0.29684137]
[1741529395947,0.32236539,570.6,569.46,0.29684137]
[1741529396140,0.35051437,570.59,569.46,0.29684137]
[1741529396344,0.32236539,570.58,569.46,0.29684137]
[1741529396544,0.35052666,570.57,569.46,0.29684137]
[1741529396745,0.32236539,570.56,569.46,0.29684137]
[1741529396947,0.35053895,570.55,569.46,0.29684137]
[1741529397145,0.35053895,570.55,569.45,0.35121608]
[1741529397146,0.32236539,570.54,569.45,0.35121608]
[1741529397344,0.35055124,570.53,569.46,0.29687984]
[1741529397647,0.32236539,570.52,569.46,0.29687984]
[1741529398744,0.32236539,570.52,569.45,0.35121608]
[1741529399547,0.35056353,570.51,569.45,0.35121608]
[1741529399746,0.32236539,570.5,569.45,0.35121608]
[1741529399948,0.35057582,570.49,569.45,0.35121608]
[1741529400252,0.32236539,570.48,569.45,0.35121608]
[1741529400446,0.67294735,570.48,569.45,0.35121608]
[1741529400748,0.32236539,570.47,569.45,0.35121608]
[1741529401147,0.35059425,570.46,569.45,0.35121608]
[1741529401348,0.32236539,570.45,569.45,0.35121608]
[1741529401643,0.35060654,570.44,569.45,0.35121608]
[1741529401844,0.32236539,570.43,569.45,0.35121608]
[1741529403449,0.35060654,570.44,569.45,0.35121608]
[1741529404949,0.30535959,570.43,569.45,0.35121608]
[1741529405847,0.32248986,570.42,569.45,0.35121608]
[1741529407253,0.35062498,570.41,569.45,0.35121608]
[1741529407453,0.32248986,570.4,569.45,0.35121608]
[1741529408450,0.32248986,570.4,568.89,1.29433963]
[1741529408654,0.32248986,570.4,568.9,0.2969564]
[1741529408857,0.30548691,570.39,568.91,0.2969564]
[1741529409149,0.82648986,570.38,568.93,0.35153709]
[1741529409356,0.32248986,570.37,569.03,1.29433963]
[1741529409855,0.32248986,570.37,569.04,0.2969564]
[1741529410261,0.32248986,570.37,569.05,0.35146296]
[1741529410557,0.35065572,570.36,569.06,0.2969564]
[1741529410858,0.35065572,570.36,569.07,0.35145061]
[1741529411057,0.32250157,570.35,569.07,0.64839026]
[1741529411255,1.62750157,570.35,569.08,0.29693965]
[1741529411456,0.32250157,570.34,569.09,0.35143826]
[1741529411654,0.32250157,570.34,569.1,0.29693965]
[1741529411850,0.32250157,570.34,569.11,0.35142591]
[1741529412059,0.32250157,570.34,569.12,0.29693965]
[1741529412457,0.32250157,570.34,569.13,0.35141356]
[1741529412752,0.32250157,570.34,569.14,0.29693965]
[1741529412956,0.32250157,570.34,569.15,0.35140121]
[1741529413359,0.32250157,570.34,569.16,0.29693965]
[1741529413858,0.35067417,570.33,569.16,0.29693965]
[1741529414166,0.32250157,570.32,569.16,0.29693965]
[1741529414360,0.35068646,570.31,569.16,0.29693965]
[1741529414658,0.32250157,570.3,569.16,0.29693965]
[1741529414859,0.67319418,570.3,569.16,0.29693965]
[1741529415063,0.35069261,570.3,569.16,0.29693965]
[1741529415258,1.128,570.29,569.16,0.29693965]
[1741529416057,0.32257066,570.28,569.16,0.29693965]
[1741529416561,0.32260403,570.27,569.15,0.35140121]
[1741529416853,0.67332124,570.26,569.15,0.35140121]
[1741529417059,0.67332739,570.25,569.15,0.35140121]
[1741529417365,0.35072336,570.25,569.15,0.35140121]
[1741529418768,0.32259969,570.24,569.15,0.35140121]
[1741529419367,0.508,570.23,569.15,0.35140121]
[1741529419567,0.32259969,570.22,569.15,0.35140121]
[1741529419862,0.62816573,570.22,569.15,0.35140121]
[1741529420061,0.32259969,570.21,569.15,0.35140121]
[1741529420269,0.67334766,570.21,569.16,0.2970296]
[1741529420566,0.32259969,570.2,569.15,0.35140121]
[1741529421168,0.35074797,570.21,569.16,0.29702388]
[1741529421956,0.35074797,570.21,569.17,0.29694016]
[1741529422160,0.35074797,570.21,569.16,0.29694016]
[1741529422470,0.35074797,570.21,569.17,0.29694016]
[1741529422660,0.35074797,570.21,569.16,0.29694016]
[1741529422857,0.35074797,570.21,569.17,0.29694016]
[1741529423059,0.35074797,570.21,569.18,0.29694016]
[1741529423260,0.673,570.2,569.16,0.29694016]
[1741529423466,0.673,570.2,569.17,0.29694016]
[1741529423765,0.673,570.2,569.18,0.29690766]
[1741529423965,0.673,570.2,569.19,0.35137651]
[1741529424160,0.673,570.2,569.19,0.64828417]
[1741529424361,1.402,570.2,569.2,0.29690766]
[1741529424762,1.402,570.2,569.21,0.35136417]
[1741529424963,1.402,570.2,569.22,0.29690766]
[1741529426164,0.30547485,570.19,569.22,0.29690766]
[1741529427367,0.30547485,570.19,569.23,0.29696152]
[1741529427567,0.30547485,570.19,569.22,0.29696152]
[1741529427768,0.30547485,570.19,569.23,0.29696152]
[1741529427971,0.30547485,570.19,569.22,0.29696152]
[1741529428166,0.30547485,570.19,569.23,0.29696152]
[1741529428474,0.30547485,570.19,569.24,0.29696152]
[1741529428666,0.32255171,570.18,569.22,0.29696152]
[1741529428873,0.3054963,570.18,569.23,0.29696152]
[1741529429267,0.3054963,570.18,569.22,0.29696152]
[1741529429462,0.3225703,570.17,569.23,0.29696152]
[1741529429666,0.3225703,570.17,569.22,0.29696152]
[1741529429876,0.3225703,570.17,569.23,0.29696152]
[1741529430165,0.3225703,570.17,569.22,0.29696152]
[1741529430462,0.3225703,570.17,569.21,0.35136417]
[1741529430662,0.617,570.16,569.21,0.35136417]
[1741529430866,0.3225703,570.15,569.21,0.35136417]
[1741529431666,0.475,570.14,569.21,0.35136417]
[1741529431866,0.3225703,570.13,569.21,0.35136417]
[1741529432066,0.475,570.14,569.21,0.35136417]
[1741529432264,0.539,570.12,569.21,0.35136417]
[1741529434564,0.466,570.11,569.21,0.35136417]
[1741529434967,0.466,570.11,569.22,0.29696543]
[1741529435268,0.30555799,570.1,569.22,0.29696543]
[1741529435469,0.97955799,570.1,569.22,0.29696543]
[1741529437669,0.674,570.1,569.21,0.35136417]
[1741529437976,0.30553922,570.09,569.21,0.35136417]
[1741529439468,0.32263687,570.08,569.21,0.35136417]
[1741529439668,0.32263687,570.08,568.92,0.30559019]
[1741529439870,0.32263687,570.08,568.93,0.29709028]
[1741529442578,0.30553922,570.09,568.93,0.29709028]
[1741529443372,0.32263956,570.08,568.93,0.29709028]
[1741529444471,1.12863956,570.08,568.93,0.29709028]
[1741529444670,0.32263956,570.07,568.93,0.29709028]
[1741529445375,0.35084026,570.06,568.93,0.29709028]
[1741529445674,0.35084026,570.06,568.83,0.30565058]
[1741529445874,0.35084026,570.06,568.84,0.29715133]
[1741529446077,0.32272563,570.05,568.84,0.29715133]
[1741529446375,0.504,570.05,568.84,0.29715133]
[1741529446578,0.35085257,570.04,568.84,0.29715133]
[1741529446778,0.84285257,570.04,568.84,0.29715133]
[1741529446973,0.84285257,570.04,568.85,0.29715133]
[1741529447177,0.30569891,570.03,568.83,0.30569891]
[1741529447383,0.35086488,570.02,568.86,0.29715133]
[1741529447577,0.3226921,570.01,568.87,0.29715133]
[1741529447785,0.35087719,570.0,568.84,0.29715133]
[1741529448079,0.35087719,570.0,568.85,0.29715133]
[1741529448475,0.32277563,569.99,568.43,1.29433963]
[1741529448678,0.32277563,569.99,568.44,0.29722572]
[1741529448878,0.32277563,569.99,568.44,0.64906584]
[1741529449177,0.32277563,569.99,568.45,0.29722572]
[1741529449972,0.32277563,569.99,568.46,0.65758037]
[1741529450372,0.32277563,569.99,568.47,0.29722572]
[1741529450781,0.32277563,569.99,568.48,0.29722572]
[1741529451176,0.35087719,570.0,568.49,0.29722572]
[1741529451373,0.32269261,569.99,568.5,0.29722572]
[1741529451580,0.32269261,569.99,568.51,0.29722572]
[1741529451789,0.32269261,569.99,568.53,0.35178442]
[1741529451973,0.32269261,569.99,568.54,0.29722572]
[1741529453075,0.3227645,569.98,568.55,0.29719941]
[1741529453276,0.3227645,569.99,568.54,0.29719941]
[1741529453479,0.3227645,569.98,568.55,0.29719941]
[1741529453680,0.651,569.97,568.54,0.29719941]
[1741529453878,0.3227645,569.96,568.55,0.64897146]
[1741529454078,0.3227645,569.96,568.56,0.64896527]
[1741529454279,0.3227645,569.96,568.57,0.29719941]
[1741529454579,0.3227645,569.96,568.57,0.64895908]
[1741529454777,0.3227645,569.96,568.58,0.29719941]
[1741529455779,0.35090797,569.95,568.59,0.3517473]
[1741529455980,0.3227645,569.94,568.6,0.29719941]
[1741529456180,0.35092028,569.93,568.61,0.35173493]
[1741529456377,0.35092028,569.93,568.62,0.29719941]
[1741529456378,0.3227645,569.92,568.62,0.29719941]
[1741529456779,0.3509326,569.91,568.62,0.29719941]
[1741529456973,0.3227645,569.9,568.62,0.29719941]
[1741529457180,0.35094491,569.89,568.62,0.29719941]
[1741529457681,0.3227645,569.88,568.62,0.29719941]
[1741529458081,0.3227645,569.88,568.61,0.35173493]
[1741529458481,0.32293005,569.87,568.61,0.35173493]
[1741529458683,0.527,569.86,568.61,0.35173493]
[1741529458884,0.32293005,569.85,568.61,0.35173493]
[1741529459383,0.35098187,569.83,568.61,0.35173493]
[1741529459582,0.32293005,569.82,568.61,0.35173493]
[1741529460182,0.35098187,569.83,568.61,0.35173493]
[1741529460383,0.32290525,569.82,568.61,0.35173493]
[1741529460787,0.35098187,569.83,567.9,1.29433963]
[1741529460978,0.35098187,569.83,567.92,0.35216227]
[1741529461183,0.35098187,569.83,567.93,0.29739591]
[1741529461579,0.85298187,569.83,567.93,0.29739591]
[1741529462084,0.32292422,569.82,567.94,0.30590179]
[1741529462284,0.32292422,569.82,567.95,0.29739591]
[1741529462680,1.47892422,569.82,567.95,0.29739591]
[1741529462879,0.32292422,569.81,567.95,0.29739591]
[1741529463284,0.32292422,569.81,567.96,0.29739591]
[1741529463484,0.32292422,569.81,567.97,0.29739591]
[1741529463680,0.463,569.8,567.98,0.29739591]
[1741529463987,0.32292422,569.79,567.99,0.29739591]
[1741529464283,0.35101883,569.77,568.01,0.35210647]
[1741529464485,0.32295312,569.76,568.02,0.29738557]
[1741529464685,0.35103731,569.74,568.04,0.35208788]
[1741529464886,0.32295312,569.73,568.05,0.29738557]
[1741529465093,0.35103731,569.74,568.05,0.29738557]
[1741529465387,0.32297791,569.73,568.07,0.35206928]
[1741529465595,0.3510558,569.71,568.08,0.29741015]
[1741529465789,0.32297791,569.7,568.1,0.35205069]
[1741529466091,0.35107428,569.68,568.11,0.29741015]
[1741529466291,0.35107428,569.68,568.12,0.3520383]
[1741529466588,0.32297791,569.67,568.13,0.29741015]
[1741529466788,0.35109277,569.65,568.14,0.3520259]
[1741529467086,0.32297791,569.64,568.15,0.29741015]
[1741529467786,0.8561051,569.63,568.16,0.35201351]
[1741529467988,0.32297791,569.62,568.17,0.29741015]
[1741529468384,0.32297791,569.62,568.18,0.35200112]
[1741529468589,0.32297791,569.62,568.19,0.29741015]
[1741529468791,0.32297791,569.62,568.2,0.35198873]
[1741529468983,0.35111743,569.61,568.21,0.29741015]
[1741529469181,0.32300886,569.6,568.22,0.35197634]
[1741529469384,0.32300886,569.6,568.23,0.29741015]
[1741529469385,0.35112976,569.59,568.23,0.29741015]
[1741529469584,0.35112976,569.59,568.22,0.35197634]
[1741529469787,0.32304417,569.58,568.23,0.29748476]
[1741529470596,0.35112976,569.59,568.22,0.35197634]
[1741529470896,0.32300934,569.58,568.23,0.29744104]
[1741529471089,0.30593138,569.57,568.24,0.35196395]
[1741529471289,0.32300934,569.56,568.25,0.29744104]
[1741529471495,0.35115442,569.55,568.26,0.35195157]
[1741529471894,0.586,569.54,568.27,0.29742814]
[1741529472394,0.32297349,569.53,568.28,0.35193918]
[1741529472591,0.35116675,569.53,568.28,0.35193918]
[1741529472895,0.35116675,569.53,568.29,0.29742814]
[1741529473195,0.35116675,569.53,568.28,0.35193918]
[1741529473494,0.32294577,569.52,568.29,0.29737826]
[1741529474195,0.35116675,569.53,568.29,0.29737826]
[1741529474392,0.35116675,569.53,568.3,0.64931133]
[1741529474593,0.30590179,569.51,568.31,0.29738454]
[1741529474991,0.30590179,569.51,568.32,0.35191441]
[1741529475189,0.30590179,569.51,568.33,0.29738454]
[1741529475394,0.30590179,569.51,568.34,0.35190203]
[1741529475597,0.30590179,569.51,568.35,0.29738454]
[1741529477097,0.30590179,569.51,568.36,0.35188964]
[1741529477297,0.30590179,569.51,568.37,0.29738454]
[1741529477492,0.30590179,569.51,568.39,0.35187107]
[1741529477696,0.30590179,569.51,568.4,0.29738454]
[1741529477895,0.693,569.5,568.42,0.3518525]
[1741529478097,0.693,569.5,568.43,0.29738454]
[1741529479698,0.562,569.49,568.43,0.29738454]
[1741529479897,1.088,569.49,568.43,0.29738454]
[1741529480496,0.494,569.48,568.43,0.29738454]
[1741529483104,0.601,569.47,568.43,0.29738454]
[1741529483314,0.601,569.47,568.42,0.3518525]
[1741529483604,0.601,569.47,568.43,0.29715232]
[1741529483804,0.566,569.46,568.43,0.29715232]
[1741529484202,0.566,569.46,568.45,0.35183393]
[1741529484399,0.566,569.46,568.46,0.29716135]
[1741529486205,0.566,569.46,568.48,0.35181536]
[1741529486409,0.566,569.46,568.49,0.29716135]
[1741529487707,0.566,569.46,568.5,0.29722567]
[1741529488206,0.566,569.46,568.49,0.29722567]
[1741529488506,0.566,569.46,568.48,0.35181536]
[1741529490016,0.30591121,569.45,568.48,0.35181536]
[1741529490808,1.54491121,569.45,568.48,0.35181536]
[1741529491009,1.54491121,569.45,568.49,0.29738541]
[1741529491515,1.54491121,569.45,568.5,0.29732781]
[1741529491807,1.54491121,569.45,568.49,0.29732781]
[1741529491808,1.239,569.45,568.49,0.29732781]
[1741529492013,1.239,569.45,568.5,0.29732781]
[1741529492218,1.239,569.45,568.51,0.29732781]
[1741529492421,1.239,569.45,568.52,0.29732781]
[1741529492611,0.30585071,569.44,568.49,0.29732781]
[1741529492809,0.30585071,569.44,568.5,0.29732781]
[1741529493006,0.30585071,569.44,568.48,0.35181536]
[1741529493207,0.30585071,569.44,568.49,0.29732412]
[1741529494412,0.30585071,569.44,568.48,0.35181536]
[1741529494707,1.744,569.45,568.48,0.35181536]
[1741529495513,0.3060215,569.44,568.48,0.35181536]
[1741529495812,0.67434017,569.43,568.17,0.3060215]
[1741529496012,0.32311175,569.42,568.18,0.64948537]
[1741529496208,0.32311175,569.42,568.19,0.29748425]
[1741529497207,0.32311175,569.42,568.2,0.35198873]
[1741529497407,0.35124075,569.41,568.21,0.29748425]
[1741529497614,0.32311175,569.4,568.21,0.64946679]
[1741529497813,0.32311175,569.4,568.22,0.29748425]
[1741529498009,0.305965,569.39,568.22,0.29748425]
[1741529498208,0.67437101,569.38,568.22,0.29748425]
[1741529498407,0.32311175,569.37,568.22,0.29748425]
[1741529499206,0.511,569.36,568.22,0.29748425]
[1741529499406,0.511,569.36,568.23,0.35197015]
[1741529499614,0.511,569.36,568.24,0.29748425]
[1741529500115,0.511,569.36,568.25,0.35195776]
[1741529500415,0.35127777,569.35,568.25,0.35195776]
[1741529501114,0.835,569.34,568.25,0.35195776]
[1741529501314,0.35129011,569.33,568.25,0.35195776]
[1741529501814,0.32316399,569.32,568.25,0.35195776]
[1741529502015,0.35130245,569.31,568.25,0.35195776]
[1741529502516,0.32316577,569.3,568.25,0.35195776]
[1741529502712,0.35131479,569.29,568.25,0.35195776]
[1741529502916,0.32316577,569.28,568.25,0.35195776]
[1741529503115,0.35132713,569.27,568.25,0.35195776]
[1741529503613,0.32314196,569.26,568.25,0.35195776]
[1741529503818,0.32311311,569.25,568.26,0.29755737]
[1741529504013,0.32310505,569.24,568.27,0.29753546]
[1741529504214,0.32310505,569.24,568.26,0.29753546]
[1741529504414,0.32310505,569.23,568.26,0.29753546]
[1741529504620,0.32308034,569.25,568.26,0.29753546]
[1741529504917,0.30599056,569.22,568.26,0.29753546]
[1741529506618,0.3513333,569.26,568.26,0.29753546]
[1741529507123,0.668,569.25,568.26,0.29753546]
[1741529507323,0.97397038,569.25,568.26,0.29753546]
[1741529508117,0.524,569.24,568.26,0.29753546]
[1741529509425,0.524,569.24,568.25,0.35195776]
[1741529510122,0.698,569.23,568.25,0.35195776]
[1741529510428,0.698,569.23,568.26,0.29740079]
[1741529510623,0.698,569.23,568.27,0.35194537]
[1741529510826,0.698,569.23,568.28,0.29740079]
[1741529511127,0.698,569.23,568.29,0.35193299]
[1741529512422,0.698,569.23,568.3,0.29748855]
[1741529513020,0.698,569.23,568.31,0.29749704]
[1741529513223,0.698,569.23,568.29,0.35193299]
[1741529514327,0.648,569.22,568.29,0.35193299]
[1741529516026,0.30597979,569.21,568.29,0.35193299]
[1741529516224,0.95797979,569.21,568.29,0.35193299]
[1741529517135,0.95797979,569.21,568.3,0.29746729]
[1741529517330,0.563,569.2,568.3,0.29746729]
[1741529517727,0.563,569.2,568.29,0.35193299]
[1741529517938,0.32324278,569.19,568.29,0.35193299]
[1741529518136,0.35138886,569.17,567.91,0.30607802]
[1741529518329,0.32324278,569.16,567.33,1.29433963]
[1741529518535,0.32324278,569.16,567.35,0.35251608]
[1741529518733,0.35140738,569.14,567.36,0.29772135]
[1741529518934,0.32324278,569.13,567.38,0.35249744]
[1741529519134,0.35141973,569.12,567.39,0.29772135]
[1741529519336,0.32324278,569.11,567.41,0.3524788]
[1741529519537,0.35143208,569.1,567.42,0.29772135]
[1741529519736,0.32324278,569.09,567.44,0.35246017]
[1741529520039,0.35144443,569.08,567.45,0.29772135]
[1741529520239,0.35144443,569.08,567.47,0.35244153]
[1741529520540,0.32331189,569.07,567.48,0.29774013]
[1741529520840,0.35145678,569.06,567.5,0.3524229]
[1741529521040,0.35145678,569.06,567.51,0.29774013]
[1741529521337,0.35145678,569.06,567.53,0.35240427]
[1741529521537,0.32326511,569.05,567.53,0.35240427]
[1741529521738,0.32326511,569.05,567.54,0.29774013]
[1741529521938,0.32326511,569.05,567.55,0.29774013]
[1741529522137,0.32326511,569.05,567.53,0.35240427]
[1741529522138,0.30618709,569.04,567.57,0.35237944]
[1741529522334,0.30618709,569.04,567.58,0.29774013]
[1741529522640,0.30618709,569.04,567.59,0.29774013]
[1741529522830,0.30618709,569.04,567.6,0.29774013]
[1741529523142,0.30618709,569.04,567.61,0.29774013]
[1741529523441,0.30618709,569.04,567.63,0.35234219]
[1741529523635,0.30618709,569.04,567.64,0.29774013]
[1741529523837,0.30618709,569.04,567.66,0.35232357]
[1741529524035,0.30618709,569.04,567.67,0.29774013]
[1741529524737,0.30618709,569.04,567.68,0.35231116]
[1741529524931,0.30618709,569.04,567.69,0.29774013]
[1741529525136,0.30618709,569.04,567.7,0.35229874]
[1741529525332,0.30618709,569.04,567.71,0.29774013]
[1741529525538,0.30618709,569.04,567.72,0.35228633]
[1741529525736,0.30618709,569.04,567.73,0.29774013]
[1741529525944,0.30618709,569.04,567.74,0.35227392]
[1741529526236,0.30618709,569.04,567.75,0.29774013]
[1741529526533,0.30618709,569.04,567.76,0.35226151]
[1741529526936,0.30618709,569.04,567.77,0.29774013]
[1741529527138,0.30618709,569.04,567.78,0.35224911]
[1741529527638,0.35145678,569.06,567.78,0.35224911]
[1741529528334,0.3062046,569.05,567.79,0.29764664]
[1741529528537,0.3062046,569.05,567.8,0.3522367]
[1741529529439,0.3062046,569.05,567.81,0.29764005]
[1741529529741,0.3062046,569.05,567.82,0.35222429]
[1741529530037,0.3062046,569.05,567.83,0.29764005]
[1741529530339,0.876,569.04,567.85,0.35220568]
[1741529530535,0.876,569.04,567.86,0.29756138]
[1741529531133,0.876,569.04,567.88,0.35218708]
[1741529531340,1.731,569.03,567.89,0.29756138]
[1741529531539,1.731,569.03,567.91,0.35216847]
[1741529531934,1.731,569.03,567.92,0.29756138]
[1741529532139,1.731,569.03,567.94,0.35214987]
[1741529532335,0.506,569.02,567.95,0.29752226]
[1741529532540,0.506,569.02,567.96,0.35213747]
[1741529532739,0.506,569.02,567.97,0.29752226]
[1741529532941,0.506,569.02,567.98,0.29752226]
[1741529533337,0.506,569.02,568.0,0.35211267]
[1741529533641,0.506,569.02,568.01,0.29752226]
[1741529533840,0.506,569.02,568.02,0.35210027]
[1741529534041,0.506,569.02,568.03,0.29752226]
[1741529534241,0.506,569.02,568.04,0.35208788]
[1741529534442,0.506,569.02,568.05,0.29752226]
[1741529534842,0.506,569.02,568.06,0.35207548]
[1741529535037,0.506,569.02,568.07,0.29752226]
[1741529535235,0.506,569.02,568.08,0.35206308]
[1741529535443,0.506,569.02,568.09,0.29752226]
[1741529535637,0.506,569.02,568.1,0.35205069]
[1741529535841,0.506,569.02,568.11,0.29752226]
[1741529536038,0.506,569.02,568.12,0.3520383]
[1741529536242,0.506,569.02,568.13,0.29752226]
[1741529536444,0.645,569.01,568.14,0.3520259]
[1741529536643,0.645,569.01,568.15,0.29752226]
[1741529536844,0.645,569.01,568.16,0.35201351]
[1741529537042,0.645,569.01,568.17,0.29752226]
[1741529537240,0.645,569.01,568.18,0.35200112]
[1741529537640,0.645,569.01,568.19,0.29743655]
[1741529537844,0.645,569.01,568.2,0.35198873]
[1741529538042,0.645,569.01,568.21,0.29743655]
[1741529538243,0.645,569.01,568.22,0.35197634]
[1741529538445,0.645,569.01,568.23,0.29743655]
[1741529538645,0.645,569.01,568.24,0.35196395]
[1741529538847,0.645,569.01,568.25,0.29743655]
[1741529539041,0.645,569.01,568.26,0.35195157]
[1741529539245,0.645,569.01,568.27,0.29743655]
[1741529539846,0.471,569.0,568.27,0.29743655]
[1741529540849,0.433,568.99,568.27,0.29743655]
[1741529541148,0.433,568.99,568.26,0.35195157]
[1741529541347,0.433,568.99,568.27,0.29743964]
[1741529541546,0.478,568.98,568.28,0.35193918]
[1741529541750,0.478,568.98,568.29,0.29743964]
[1741529541944,0.478,568.98,568.3,0.35192679]
[1741529542150,0.478,568.98,568.31,0.29743964]
[1741529542342,0.478,568.98,568.31,0.64936024]
[1741529542547,0.478,568.98,568.32,0.29743964]
[1741529544769,0.478,568.98,568.31,0.3519206]
[1741529544946,0.478,568.98,568.32,0.29745905]
[1741529545355,0.639,568.97,568.32,0.29745905]
[1741529546551,0.609,568.96,568.33,0.29745248]
[1741529546758,0.609,568.96,568.34,0.29745248]
[1741529546958,0.609,568.96,568.32,0.29745248]
[1741529547156,0.609,568.96,568.33,0.29745248]
[1741529547558,0.609,568.96,568.31,0.3519206]
[1741529547559,0.727,568.95,568.34,0.29745248]
[1741529547759,0.727,568.95,568.32,0.29745248]
[1741529547958,0.727,568.95,568.33,0.29745248]
[1741529548159,0.727,568.95,568.32,0.29745248]
[1741529548361,0.727,568.95,568.33,0.29745248]
[1741529548660,0.727,568.95,568.34,0.29745248]
[1741529548861,0.727,568.95,568.32,0.29745248]
[1741529549056,0.727,568.95,568.33,0.29745248]
[1741529549262,0.727,568.95,568.32,0.29745248]
[1741529549463,0.727,568.95,568.33,0.29745248]
[1741529549759,0.727,568.95,568.32,0.29745248]
[1741529549961,0.727,568.95,568.33,0.29745248]
[1741529550160,0.727,568.95,568.32,0.29745248]
[1741529550366,0.727,568.95,568.33,0.29745248]
[1741529550566,0.727,568.95,568.33,0.6493607]
[1741529550764,0.727,568.95,568.34,0.29745248]
[1741529551066,0.727,568.95,568.35,0.29745248]
[1741529551271,0.727,568.95,568.33,0.35190822]
[1741529551272,0.727,568.95,568.34,0.29745248]
[1741529551565,0.727,568.95,568.21,0.30599997]
[1741529551566,0.727,568.95,568.35,0.64934831]
[1741529551772,0.727,568.95,568.35,0.35189583]
[1741529552162,0.727,568.95,568.36,0.29737979]
[1741529552969,0.727,568.95,568.37,0.35188345]
[1741529553166,0.727,568.95,568.38,0.29737979]
[1741529553867,0.727,568.95,568.39,0.29739087]
[1741529554166,0.727,568.95,568.4,0.35186488]
[1741529554362,0.727,568.95,568.41,0.29739087]
[1741529554667,0.727,568.95,568.42,0.3518525]
[1741529554867,0.727,568.95,568.43,0.29739087]
[1741529555167,0.727,568.95,568.44,0.35184012]
[1741529555366,0.727,568.95,568.45,0.29739087]
[1741529555563,1.969,568.95,568.45,0.29739087]
[1741529555861,1.969,568.95,568.44,0.35184012]
[1741529559269,2.614,568.95,568.44,0.35184012]
[1741529559466,2.614,568.95,568.45,0.2974626]
[1741529559862,2.614,568.95,568.44,0.35184012]
[1741529561462,3.053,568.95,568.44,0.35184012]
[1741529564267,3.053,568.95,568.45,0.29745055]
[1741529564869,3.555,568.95,568.45,0.29745055]
[1741529566963,3.555,568.95,568.44,0.35184012]
[1741529567168,3.555,568.95,568.45,0.29740145]
[1741529567567,4.942,568.95,568.45,0.29740145]
[1741529568370,4.942,568.95,568.46,0.29744188]
[1741529568671,4.942,568.95,568.47,0.29744188]
[1741529568867,4.942,568.95,568.45,0.29744188]
[1741529569067,4.942,568.95,568.46,0.29744188]
[1741529569269,4.942,568.95,568.45,0.29744188]
[1741529569468,4.942,568.95,568.46,0.29744188]
[1741529569668,4.942,568.95,568.45,0.2974364]
[1741529569866,4.942,568.95,568.44,0.35184012]
[1741529570069,4.942,568.95,568.45,0.29744063]
[1741529570370,4.942,568.95,568.44,0.35184012]
[1741529571873,5.426,568.95,568.44,0.35184012]
[1741529573873,5.426,568.95,568.25,0.30604168]
[1741529574073,5.426,568.95,568.26,0.29751748]
[1741529575970,5.426,568.95,568.0,0.29751748]
[1741529576172,5.426,568.95,568.19,0.30607802]
[1741529576373,5.426,568.95,568.2,0.29751748]
[1741529576672,5.426,568.95,568.21,0.29751748]
[1741529577074,5.426,568.95,568.22,0.29751748]
[1741529577272,5.426,568.95,568.19,0.30607533]
[1741529577474,5.426,568.95,568.2,0.29751748]
[1741529578072,5.426,568.95,568.21,0.35198254]
[1741529578276,5.426,568.95,568.22,0.29751748]
[1741529578976,5.426,568.95,568.19,0.30607533]
[1741529578977,5.426,568.95,568.23,0.35197015]
[1741529579172,5.426,568.95,568.24,0.29744923]
[1741529579377,5.426,568.95,568.25,0.35195776]
[1741529579578,5.426,568.95,568.26,0.29744923]
[1741529579778,5.426,568.95,568.27,0.35194537]
[1741529579978,5.426,568.95,568.28,0.29744923]
[1741529580179,5.426,568.95,568.29,0.35193299]
[1741529580375,5.426,568.95,568.3,0.29744923]
[1741529580573,5.426,568.95,568.31,0.3519206]
[1741529580777,5.92,568.95,568.32,0.29741353]
[1741529580973,5.92,568.95,568.33,0.35190822]
[1741529581178,5.92,568.95,568.34,0.29741353]
[1741529581377,5.92,568.95,568.35,0.35189583]
[1741529581881,5.92,568.95,568.36,0.29741353]
[1741529582079,5.92,568.95,568.37,0.35188345]
[1741529582281,5.92,568.95,568.38,0.29741353]
[1741529582481,5.92,568.95,568.39,0.35187107]
[1741529582681,5.92,568.95,568.4,0.29741353]
[1741529583181,5.92,568.95,568.41,0.35185869]
[1741529583376,5.92,568.95,568.42,0.29741353]
[1741529583986,5.92,568.95,568.41,0.35185869]
[1741529584581,5.92,568.95,568.42,0.29742436]
[1741529585687,5.92,568.95,568.43,0.29741103]
[1741529586081,5.92,568.95,568.44,0.29741103]